fUSD/lending_fUSD_20260507
["ID","MTS","AMOUNT","RATE_DAILY","PERIOD"]
[421759800,1778116241000,-500.0,0.0001445,2]
[421759823,1778116241000,-607.0,0.0001445,2]
[421759825,1778116241000,-607.0,0.0001445,2]
[421759828,1778116241000,-607.0,0.0001445,2]
[421759827,1778116241000,-607.0,0.0001445,2]
[421759830,1778116241000,-607.0,0.0001445,2]
[421759829,1778116241000,-607.0,0.0001445,2]
[421759831,1778116241000,-607.0,0.0001445,2]
[421759835,1778116241000,-351.77,0.00014522,2]
[421759836,1778116241000,-10592.85531538,0.0001458,2]
[421759834,1778116241000,-5010.2958563,0.00014485,2]
[421759838,1778116241000,-346.30083,0.0001459,2]
[421759837,1778116241000,-20260.33309877,0.0001459,2]
[421759832,1778116241000,-607.0,0.0001445,2]
[421759833,1778116241000,-622.01126023,0.0001445,2]
[421759841,1778116241000,-346.30083,0.0001459,2]
[421759850,1778116241000,-246.03294397,0.00014721,2]
[421759840,1778116241000,-346.30083,0.0001459,2]
[421759839,1778116241000,-346.30083,0.0001459,2]
[421759843,1778116241000,-255.0,0.00014592,2]
[421759842,1778116241000,-153.968219,0.0001459,2]
[421759844,1778116241000,-587.0,0.00014602,2]
[421759849,1778116241000,-2236.95670848,0.00014693,2]
[421759848,1778116241000,-2351.0,0.00014665,2]
[421759847,1778116241000,-47459.74175328,0.0001466,2]
[421759851,1778116241000,-1000.0,0.00014721,2]
[421759846,1778116241000,-2000.0,0.00014616,2]
[421759852,1778116241000,-500.0,0.00014738,2]
[421759819,1778116241000,-607.0,0.0001445,2]
[421759824,1778116241000,-607.0,0.0001445,2]
[421759845,1778116241000,-2000.0,0.00014616,2]
[421759826,1778116241000,-607.0,0.0001445,2]
[421759818,1778116241000,-607.0,0.0001445,2]
[421759791,1778116241000,-300.483804,0.00014367,2]
[421759801,1778116241000,-150.0,0.0001445,2]
[421759803,1778116241000,-500.0,0.0001445,2]
[421759797,1778116241000,-20260.33309877,0.00014435,2]
[421759802,1778116241000,-607.0,0.0001445,2]
[421759796,1778116241000,-340.263851,0.00014426,2]
[421759794,1778116241000,-10592.85531538,0.0001442,2]
[421759795,1778116241000,-1001.13211831,0.00014421,2]
[421759793,1778116241000,-10438.60454599,0.0001439,2]
[421759799,1778116241000,-607.0,0.0001445,2]
[421759798,1778116241000,-607.0,0.0001445,2]
[421759804,1778116241000,-150.0,0.0001445,2]
[421759805,1778116241000,-607.0,0.0001445,2]
[421759792,1778116241000,-166.66,0.00014384,2]
[421759808,1778116241000,-607.0,0.0001445,2]
[421759806,1778116241000,-500.0,0.0001445,2]
[421759820,1778116241000,-607.0,0.0001445,2]
[421759821,1778116241000,-607.0,0.0001445,2]
[421759817,1778116241000,-246.81959912,0.0001445,2]
[421759816,1778116241000,-607.0,0.0001445,2]
[421759815,1778116241000,-150.0,0.0001445,2]
[421759814,1778116241000,-607.0,0.0001445,2]
[421759822,1778116241000,-607.0,0.0001445,2]
[421759813,1778116241000,-466.12046251,0.0001445,2]
[421759812,1778116241000,-500.0,0.0001445,2]
[421759810,1778116241000,-224.8697139,0.0001445,2]
[421759809,1778116241000,-500.0,0.0001445,2]
[421759807,1778116241000,-150.0,0.0001445,2]
[421759811,1778116241000,-607.0,0.0001445,2]
[421759873,1778116242000,-2783840.0128084,0.00014928,2]
[421759881,1778116242000,-300.0,0.00014999,2]
[421759878,1778116242000,-388.00733685,0.0001499,2]
[421759880,1778116242000,-300.0,0.00014999,2]
[421759884,1778116242000,-8212.82297253,0.00015,2]
[421759887,1778116242000,-4650.5,0.00015,2]
[421759885,1778116242000,-380.52932165,0.00015,2]
[421759886,1778116242000,-115966.14976632,0.00015,2]
[421759882,1778116242000,-300.0,0.00014999,2]
[421759888,1778116242000,-8252.18886465,0.00014011,2]
[421759892,1778116242000,-151.0,0.00015,2]
[421759890,1778116242000,-151.0,0.00015,2]
[421759891,1778116242000,-151.0,0.00015,2]
[421759893,1778116242000,-151.0,0.00015,2]
[421759896,1778116242000,-202.47152,0.00015,2]
[421759875,1778116242000,-350.0,0.00014967,2]
[421759897,1778116242000,-202.47152,0.00015,2]
[421759895,1778116242000,-151.0,0.00015,2]
[421759898,1778116242000,-202.47152,0.00015,2]
[421759894,1778116242000,-4944.86871757,0.00015,2]
[421759910,1778116242000,-346.30083,0.00015,2]
[421759889,1778116242000,-7011055.53702445,0.00015,2]
[421759879,1778116242000,-388.00733685,0.0001499,2]
[421759870,1778116242000,-17918.53367281,0.00014907,2]
[421759874,1778116242000,-591.9658418,0.00014953,2]
[421759911,1778116242000,-173.0,0.00015,2]
[421759856,1778116242000,-500.0,0.00014805,2]
[421759853,1778116242000,-10592.85531538,0.0001474,2]
[421759857,1778116242000,-500.0,0.00014805,2]
[421759855,1778116242000,-700.0,0.000148,5]
[421759854,1778116242000,-20260.33309877,0.00014745,2]
[421759858,1778116242000,-500.0,0.00014805,2]
[421759860,1778116242000,-500.0,0.00014805,2]
[421759862,1778116242000,-151.0,0.00014806,2]
[421759865,1778116242000,-10592.85531538,0.000149,2]
[421759863,1778116242000,-788.48,0.00014875,2]
[421759864,1778116242000,-700.0,0.000149,5]
[421759866,1778116242000,-20260.33309877,0.000149,2]
[421759868,1778116242000,-22355.48259901,0.000149,2]
[421759859,1778116242000,-500.0,0.00014805,2]
[421759867,1778116242000,-1458.13046436,0.000149,2]
[421759869,1778116242000,-3588295.4487042,0.00014901,2]
[421759883,1778116242000,-611719.24948946,0.00015,2]
[421759876,1778116242000,-3588295.4487042,0.00014969,2]
[421759871,1778116242000,-17918.53367281,0.00014907,2]
[421759877,1778116242000,-4131.94573566,0.00014989,2]
[421759872,1778116242000,-2783840.0128084,0.00014915,2]
[421759861,1778116242000,-526.26,0.00014805,2]
[421759900,1778116242000,-151.0,0.00015,2]
[421759909,1778116242000,-346.30083,0.00015,2]
[421759929,1778116242000,-178.0,0.00015137,2]
[421759931,1778116242000,-158.25,0.00015139,2]
[421759927,1778116242000,-1535.0,0.00015105,2]
[421759932,1778116242000,-474.0,0.00015147,2]
[421759936,1778116242000,-333.33333,0.0001516,2]
[421759935,1778116242000,-333.33333,0.0001516,2]
[421759934,1778116242000,-2000.0,0.00015153,2]
[421759933,1778116242000,-788.48,0.00015149,2]
[421759937,1778116242000,-333.33334,0.0001516,2]
[421759938,1778116242000,-977.51403986,0.00015164,2]
[421759940,1778116242000,-474.0,0.00015179,2]
[421759939,1778116242000,-500.0,0.00015164,2]
[421759942,1778116242000,-474.0,0.00015204,2]
[421759943,1778116242000,-310.0,0.00015205,2]
[421759945,1778116242000,-474.0,0.00015213,2]
[421759944,1778116242000,-474.0,0.00015211,2]
[421759948,1778116242000,-458.44,0.00015262,2]
[421759946,1778116242000,-2319.72410669,0.00015241,2]
[421759949,1778116242000,-1500.0,0.00015268,2]
[421759947,1778116242000,-474.0,0.00015257,2]
[421759907,1778116242000,-346.30083,0.00015,2]
[421759930,1778116242000,-474.0,0.00015137,2]
[421759928,1778116242000,-474.0,0.00015125,2]
[421759941,1778116242000,-200.0,0.00015193,2]
[421759926,1778116242000,-150.0,0.00015068,2]
[421759901,1778116242000,-151.0,0.00015,2]
[421759925,1778116242000,-900.0,0.00015068,2]
[421759906,1778116242000,-151.0,0.00015,2]
[421759902,1778116242000,-151.0,0.00015,2]
[421759899,1778116242000,-202.47152,0.00015,2]
[421759903,1778116242000,-151.0,0.00015,2]
[421759908,1778116242000,-346.30083,0.00015,2]
[421759905,1778116242000,-151.0,0.00015,2]
[421759912,1778116242000,-173.0,0.00015,2]
[421759921,1778116242000,-674.95,0.00015015,2]
[421759904,1778116242000,-151.0,0.00015,2]
[421759914,1778116242000,-2224.0,0.00015005,5]
[421759922,1778116242000,-474.0,0.00015016,2]
[421759917,1778116242000,-474.0,0.00015014,2]
[421759916,1778116242000,-474.0,0.00015011,2]
[421759915,1778116242000,-1780.0,0.00015005,5]
[421759919,1778116242000,-500.0,0.00015015,2]
[421759918,1778116242000,-500.0,0.00015015,2]
[421759920,1778116242000,-500.0,0.00015015,2]
[421759913,1778116242000,-174.0,0.00015,2]
[421759923,1778116242000,-474.0,0.0001503,2]
[421759924,1778116242000,-200.0,0.00015037,2]
[421759989,1778116243000,-150.0,0.00016206,2]
[421759985,1778116243000,-150.0,0.00016199,2]
[421759996,1778116243000,-250.0,0.00016421,2]
[421759987,1778116243000,-211.98,0.000162,2]
[421759994,1778116243000,-2494.55939289,0.00016337,2]
[421759995,1778116243000,-1809.56997448,0.00016364,2]
[421759992,1778116243000,-4722.95174593,0.0001625,2]
[421759993,1778116243000,-178.0,0.00016336,2]
[421759990,1778116243000,-350.0,0.00016215,2]
[421759997,1778116243000,-952.1,0.00016438,2]
[421759991,1778116243000,-207.86895535,0.00016226,2]
[421759982,1778116243000,-153.87,0.00016138,2]
[421759999,1778116243000,-229.62,0.00016438,2]
[421760032,1778116243000,-500.0,0.00016438,2]
[421760001,1778116243000,-500.0,0.00016438,2]
[421760017,1778116243000,-160.286181,0.00016438,2]
[421760005,1778116243000,-500.0,0.00016438,2]
[421760011,1778116243000,-500.0,0.00016438,2]
[421759998,1778116243000,-900.0,0.00016438,2]
[421760008,1778116243000,-150.0,0.00016438,2]
[421760014,1778116243000,-160.286181,0.00016438,2]
[421760019,1778116243000,-160.286181,0.00016438,2]
[421760020,1778116243000,-160.286181,0.00016438,2]
[421760021,1778116243000,-160.286181,0.00016438,2]
[421760024,1778116243000,-160.286181,0.00016438,2]
[421760025,1778116243000,-500.0,0.00016438,2]
[421759983,1778116243000,-350.0,0.00016164,2]
[421760003,1778116243000,-500.0,0.00016438,2]
[421759980,1778116243000,-9999.99,0.00016116,2]
[421759957,1778116243000,-350.0,0.00015373,2]
[421759976,1778116243000,-377.29903517,0.0001596,2]
[421760028,1778116243000,-696.249343,0.00016438,2]
[421759952,1778116243000,-416.1062653,0.00015315,2]
[421759953,1778116243000,-333.33333,0.00015316,2]
[421759951,1778116243000,-1000.0,0.00015315,2]
[421759950,1778116243000,-1000.0,0.00015315,2]
[421759955,1778116243000,-333.33333,0.00015316,2]
[421759954,1778116243000,-333.33334,0.00015316,2]
[421759968,1778116243000,-178.0,0.00015736,2]
[421759967,1778116243000,-487.23,0.00015697,2]
[421759969,1778116243000,-150.0,0.00015768,2]
[421759956,1778116243000,-587.0,0.00015349,2]
[421759958,1778116243000,-153.87,0.00015375,2]
[421759963,1778116243000,-4722.95174593,0.00015588,2]
[421759974,1778116243000,-433.0,0.00015804,2]
[421759960,1778116243000,-350.0,0.00015447,2]
[421759964,1778116243000,-250.0,0.00015616,2]
[421759959,1778116243000,-788.48,0.00015423,2]
[421759966,1778116243000,-350.0,0.00015682,2]
[421759965,1778116243000,-4722.95174593,0.00015624,2]
[421759970,1778116243000,-2405.55389864,0.00015789,2]
[421759972,1778116243000,-421.82,0.000158,2]
[421759973,1778116243000,-1967.23,0.000158,2]
[421759971,1778116243000,-212.14,0.000158,2]
[421759981,1778116243000,-3292.0,0.00016132,2]
[421759978,1778116243000,-823.0,0.00016028,2]
[421759975,1778116243000,-2000.0,0.00015816,2]
[421759979,1778116243000,-155.0,0.00016115,2]
[421759977,1778116243000,-300.0,0.00016,2]
[421759962,1778116243000,-700.0,0.00015485,2]
[421760034,1778116243000,-500.0,0.00016438,2]
[421760073,1778116243000,-656.20749194,0.00016852,2]
[421760022,1778116243000,-160.286181,0.00016438,2]
[421760071,1778116243000,-656.20749194,0.00016792,2]
[421760072,1778116243000,-678.0,0.00016837,2]
[421760059,1778116243000,-656.20749194,0.00016514,2]
[421760061,1778116243000,-382.47,0.00016559,2]
[421760062,1778116243000,-157.04146425,0.00016562,2]
[421760068,1778116243000,-450.0,0.00016712,2]
[421760067,1778116243000,-187.35,0.00016712,2]
[421760066,1778116243000,-2000.0,0.00016668,2]
[421760063,1778116243000,-656.20749194,0.00016579,2]
[421760064,1778116243000,-656.20749194,0.00016651,2]
[421760069,1778116243000,-656.20749194,0.00016722,2]
[421760065,1778116243000,-186.53575633,0.00016658,2]
[421760081,1778116243000,-175.80035316,0.00016986,2]
[421760083,1778116243000,-743.57107582,0.00016986,2]
[421760084,1778116243000,-503.48747475,0.00016986,2]
[421760077,1778116243000,-178.0,0.00016936,2]
[421760086,1778116243000,-1001.54617284,0.00016986,2]
[421760082,1778116243000,-505.02774698,0.00016986,2]
[421760074,1778116243000,-656.20749194,0.00016871,2]
[421760075,1778116243000,-656.20749194,0.00016872,2]
[421760078,1778116243000,-502.27964987,0.00016986,2]
[421760079,1778116243000,-502.85939359,0.00016986,2]
[421760080,1778116243000,-501.25895047,0.00016986,2]
[421760076,1778116243000,-2586.85809042,0.00016885,2]
[421760085,1778116243000,-1000.0,0.00016986,2]
[421760088,1778116243000,-1134.77125774,0.00016986,2]
[421760089,1778116243000,-1000.0,0.00016986,2]
[421760070,1778116243000,-458.44,0.00016788,2]
[421760060,1778116243000,-158.25,0.00016515,2]
[421760087,1778116243000,-1000.0,0.00016986,2]
[421760053,1778116243000,-500.0,0.00016438,2]
[421760052,1778116243000,-500.0,0.00016438,2]
[421760023,1778116243000,-160.286181,0.00016438,2]
[421760027,1778116243000,-696.249343,0.00016438,2]
[421760026,1778116243000,-696.249343,0.00016438,2]
[421760029,1778116243000,-696.249343,0.00016438,2]
[421760031,1778116243000,-696.249343,0.00016438,2]
[421760030,1778116243000,-696.249343,0.00016438,2]
[421760035,1778116243000,-696.249343,0.00016438,2]
[421760043,1778116243000,-500.0,0.00016438,2]
[421760044,1778116243000,-500.0,0.00016438,2]
[421760042,1778116243000,-500.0,0.00016438,2]
[421760040,1778116243000,-500.0,0.00016438,2]
[421760046,1778116243000,-500.0,0.00016438,2]
[421760038,1778116243000,-500.0,0.00016438,2]
[421760033,1778116243000,-500.0,0.00016438,2]
[421760036,1778116243000,-696.249343,0.00016438,2]
[421760037,1778116243000,-529.61366875,0.00016438,2]
[421760050,1778116243000,-565.62994908,0.00016438,2]
[421760049,1778116243000,-500.0,0.00016438,2]
[421760047,1778116243000,-195.85164586,0.00016438,2]
[421760058,1778116243000,-13036.83413115,0.000165,2]
[421760055,1778116243000,-656.20749194,0.00016444,2]
[421760051,1778116243000,-500.0,0.00016438,2]
[421760057,1778116243000,-4438.54635438,0.000165,2]
[421760056,1778116243000,-166.66,0.00016479,2]
[421760041,1778116243000,-500.0,0.00016438,2]
[421760039,1778116243000,-339.1872416,0.00016438,2]
[421760048,1778116243000,-500.0,0.00016438,2]
[421760054,1778116243000,-500.0,0.00016438,2]
[421760045,1778116243000,-500.0,0.00016438,2]
[421760128,1778116244000,-458.44,0.00018315,2]
[421760131,1778116244000,-500.0,0.00018355,2]
[421760139,1778116244000,-350.0,0.000185,2]
[421760130,1778116244000,-500.0,0.00018355,2]
[421760129,1778116244000,-500.0,0.00018355,2]
[421760140,1778116244000,-350.0,0.000185,2]
[421760133,1778116244000,-300.0,0.00018355,2]
[421760138,1778116244000,-350.0,0.000185,2]
[421760134,1778116244000,-455.74290845,0.000184,2]
[421760136,1778116244000,-504.57538048,0.00018465,2]
[421760135,1778116244000,-952.1,0.0001841,2]
[421760137,1778116244000,-455.74290845,0.000185,2]
[421760156,1778116244000,-504.57538048,0.00018624,2]
[421760152,1778116244000,-504.57538048,0.00018577,2]
[421760151,1778116244000,-569.0,0.00018539,2]
[421760154,1778116244000,-504.57538048,0.00018595,2]
[421760141,1778116244000,-350.0,0.000185,2]
[421760132,1778116244000,-674.95,0.00018355,2]
[421760158,1778116244000,-326.53167166,0.0001865,2]
[421760157,1778116244000,-5997.94,0.00018624,2]
[421760144,1778116244000,-350.0,0.000185,2]
[421760148,1778116244000,-350.0,0.000185,2]
[421760146,1778116244000,-350.0,0.000185,2]
[421760150,1778116244000,-504.57538048,0.00018528,2]
[421760149,1778116244000,-201.0,0.000185,2]
[421760160,1778116244000,-455.74290845,0.000187,2]
[421760142,1778116244000,-350.0,0.000185,2]
[421760121,1778116244000,-350.0,0.00018,2]
[421760118,1778116244000,-816.89,0.00017881,2]
[421760124,1778116244000,-200.0,0.00018,2]
[421760159,1778116244000,-2665.75,0.00018657,2]
[421760092,1778116244000,-500.0,0.00016999,2]
[421760094,1778116244000,-500.0,0.00016999,2]
[421760096,1778116244000,-656.20749194,0.00017099,2]
[421760090,1778116244000,-1000.0,0.00016986,2]
[421760095,1778116244000,-526.26,0.00016999,2]
[421760091,1778116244000,-500.0,0.00016999,2]
[421760093,1778116244000,-500.0,0.00016999,2]
[421760098,1778116244000,-365.96198961,0.0001726,2]
[421760108,1778116244000,-19611.54,0.00017572,2]
[421760097,1778116244000,-736.0,0.00017111,2]
[421760101,1778116244000,-169.55,0.00017303,2]
[421760126,1778116244000,-2000.0,0.00018183,2]
[421760099,1778116244000,-656.20749194,0.00017261,2]
[421760105,1778116244000,-1655.82,0.00017572,2]
[421760104,1778116244000,-500.0,0.00017544,2]
[421760103,1778116244000,-2318.47541614,0.00017433,2]
[421760106,1778116244000,-1933.01,0.00017572,2]
[421760114,1778116244000,-4609.0,0.00017745,2]
[421760112,1778116244000,-155.0,0.00017727,2]
[421760116,1778116244000,-211.98,0.0001782,2]
[421760110,1778116244000,-1152.0,0.00017593,2]
[421760127,1778116244000,-455.74290845,0.000182,2]
[421760125,1778116244000,-854.54746405,0.00018136,2]
[421760123,1778116244000,-455.74290845,0.00018,2]
[421760120,1778116244000,-158.25,0.00017891,2]
[421760100,1778116244000,-200.0,0.000173,2]
[421760102,1778116244000,-656.20749194,0.00017306,2]
[421760161,1778116244000,-213.92,0.0001872,2]
[421760172,1778116244000,-150.0,0.00018803,2]
[421760198,1778116244000,-157.04146425,0.00019153,2]
[421760208,1778116244000,-500.0,0.00019178,2]
[421760197,1778116244000,-504.57538048,0.00019087,2]
[421760199,1778116244000,-504.57538048,0.00019154,2]
[421760200,1778116244000,-500.0,0.00019178,2]
[421760203,1778116244000,-500.0,0.00019178,2]
[421760205,1778116244000,-500.0,0.00019178,2]
[421760206,1778116244000,-500.0,0.00019178,2]
[421760204,1778116244000,-500.0,0.00019178,2]
[421760202,1778116244000,-500.0,0.00019178,2]
[421760207,1778116244000,-500.0,0.00019178,2]
[421760201,1778116244000,-500.0,0.00019178,2]
[421760190,1778116244000,-311.0,0.00019,2]
[421760211,1778116244000,-500.0,0.00019178,2]
[421760210,1778116244000,-500.0,0.00019178,2]
[421760216,1778116244000,-151.0,0.00019178,2]
[421760214,1778116244000,-380.41984111,0.00019178,2]
[421760212,1778116244000,-500.0,0.00019178,2]
[421760219,1778116244000,-151.0,0.00019178,2]
[421760213,1778116244000,-500.0,0.00019178,2]
[421760217,1778116244000,-151.0,0.00019178,2]
[421760215,1778116244000,-2212.0,0.00019178,2]
[421760218,1778116244000,-151.0,0.00019178,2]
[421760221,1778116244000,-151.0,0.00019178,2]
[421760222,1778116244000,-781.48578051,0.00019246,2]
[421760164,1778116244000,-300.0,0.00018799,2]
[421760220,1778116244000,-151.0,0.00019178,2]
[421760195,1778116244000,-1058.0,0.00019,2]
[421760209,1778116244000,-500.0,0.00019178,2]
[421760189,1778116244000,-846.31373215,0.00019,2]
[421760171,1778116244000,-150.0,0.00018803,2]
[421760185,1778116244000,-209.0,0.00018938,2]
[421760166,1778116244000,-150.0,0.00018803,2]
[421760162,1778116244000,-1933.01,0.0001872,2]
[421760163,1778116244000,-7997.26,0.00018732,2]
[421760165,1778116244000,-34850.08053899,0.000188,2]
[421760169,1778116244000,-150.0,0.00018803,2]
[421760167,1778116244000,-150.0,0.00018803,2]
[421760175,1778116244000,-504.57538048,0.00018863,2]
[421760179,1778116244000,-150.0,0.00018938,2]
[421760176,1778116244000,-8996.94,0.00018902,2]
[421760177,1778116244000,-150.0,0.00018938,2]
[421760184,1778116244000,-150.0,0.00018938,2]
[421760173,1778116244000,-150.0,0.00018803,2]
[421760174,1778116244000,-221.0,0.00018803,2]
[421760180,1778116244000,-150.0,0.00018938,2]
[421760192,1778116244000,-278.0,0.00019,2]
[421760188,1778116244000,-786.09393319,0.00019,2]
[421760187,1778116244000,-3978.57724483,0.00019,2]
[421760196,1778116244000,-39509.45339531,0.00019,2]
[421760194,1778116244000,-246.0,0.00019,2]
[421760191,1778116244000,-237.0,0.00019,2]
[421760193,1778116244000,-921.0,0.00019,2]
[421760181,1778116244000,-150.0,0.00018938,2]
[421760183,1778116244000,-150.0,0.00018938,2]
[421760182,1778116244000,-150.0,0.00018938,2]
[421760178,1778116244000,-150.0,0.00018938,2]
[421760186,1778116244000,-504.57538048,0.0001894,2]
[421760262,1778116245000,-400.0,0.0002,2]
[421760272,1778116245000,-150.0,0.00020196,2]
[421760263,1778116245000,-278.0,0.0002,2]
[421760260,1778116245000,-311.0,0.0002,2]
[421760267,1778116245000,-1058.0,0.0002,2]
[421760271,1778116245000,-7997.28,0.00020102,2]
[421760261,1778116245000,-237.0,0.0002,2]
[421760264,1778116245000,-921.0,0.0002,2]
[421760253,1778116245000,-928.0,0.00019955,2]
[421760251,1778116245000,-526.26,0.00019949,2]
[421760252,1778116245000,-276950.9966035,0.0001995,15]
[421760257,1778116245000,-1487.46726571,0.0002,5]
[421760270,1778116245000,-2665.75,0.00020027,2]
[421760266,1778116245000,-7000.01088377,0.0002,2]
[421760281,1778116245000,-952.1,0.00020381,2]
[421760268,1778116245000,-200.0,0.0002,2]
[421760265,1778116245000,-246.0,0.0002,2]
[421760274,1778116245000,-150.0,0.00020196,2]
[421760273,1778116245000,-150.0,0.00020196,2]
[421760283,1778116245000,-150.0,0.00020445,2]
[421760276,1778116245000,-150.0,0.00020196,2]
[421760284,1778116245000,-275.0,0.00020445,2]
[421760275,1778116245000,-150.0,0.00020196,2]
[421760279,1778116245000,-628.0,0.000202,2]
[421760278,1778116245000,-1000.0,0.000202,2]
[421760280,1778116245000,-280.0,0.00020373,2]
[421760277,1778116245000,-614.0,0.000202,2]
[421760256,1778116245000,-5997.94,0.00019994,2]
[421760269,1778116245000,-1000.0,0.0002,7]
[421760255,1778116245000,-160.0,0.00019991,2]
[421760229,1778116245000,-500.0,0.0001945,2]
[421760250,1778116245000,-500.0,0.00019949,2]
[421760232,1778116245000,-504.57538048,0.00019469,2]
[421760223,1778116245000,-158.25,0.00019268,2]
[421760228,1778116245000,-160.63,0.00019445,2]
[421760230,1778116245000,-258.07795954,0.0001945,2]
[421760225,1778116245000,-155.0,0.00019338,2]
[421760224,1778116245000,-1613.0,0.00019311,2]
[421760227,1778116245000,-211.98,0.0001944,2]
[421760231,1778116245000,-162.59148893,0.0001945,2]
[421760226,1778116245000,-504.57538048,0.00019409,2]
[421760235,1778116245000,-500.0,0.00019899,2]
[421760233,1778116245000,-6453.0,0.00019519,2]
[421760237,1778116245000,-511.266808,0.00019899,2]
[421760236,1778116245000,-500.0,0.00019899,2]
[421760254,1778116245000,-6043.0,0.00019955,2]
[421760244,1778116245000,-235.94410421,0.00019949,2]
[421760246,1778116245000,-500.0,0.00019949,2]
[421760239,1778116245000,-526.26,0.00019899,2]
[421760242,1778116245000,-214.60306816,0.00019947,2]
[421760234,1778116245000,-8190.57590059,0.00019834,2]
[421760240,1778116245000,-4986.65705926,0.000199,3]
[421760238,1778116245000,-500.0,0.00019899,2]
[421760243,1778116245000,-151.0,0.00019947,2]
[421760241,1778116245000,-1069.0,0.00019945,2]
[421760248,1778116245000,-500.0,0.00019949,2]
[421760258,1778116245000,-158.0,0.0002,13]
[421760259,1778116245000,-150.0,0.0002,2]
[421760249,1778116245000,-674.95,0.00019949,2]
[421760247,1778116245000,-372.00965941,0.00019949,2]
[421760245,1778116245000,-500.0,0.00019949,2]
[421760282,1778116245000,-200.0,0.00020445,2]
[421760295,1778116245000,-202.0,0.0002052,2]
[421760286,1778116245000,-150.0,0.00020445,2]
[421760325,1778116245000,-1058.0,0.00022,2]
[421760321,1778116245000,-278.0,0.00022,2]
[421760322,1778116245000,-921.0,0.00022,2]
[421760327,1778116245000,-551.0,0.00022323,7]
[421760323,1778116245000,-105989.91901721,0.00022,4]
[421760332,1778116245000,-213.92,0.00022691,2]
[421760326,1778116245000,-166.74,0.00022137,2]
[421760324,1778116245000,-246.0,0.00022,2]
[421760330,1778116245000,-155.0,0.00022561,2]
[421760331,1778116245000,-5529.0,0.000226,3]
[421760328,1778116245000,-952.1,0.00022353,2]
[421760333,1778116245000,-522.146,0.00022945,2]
[421760329,1778116245000,-854.54746405,0.00022489,2]
[421760312,1778116245000,-1002.61,0.00021918,2]
[421760335,1778116245000,-6043.0,0.00022955,2]
[421760334,1778116245000,-928.0,0.00022955,2]
[421760346,1778116245000,-921.0,0.00023,2]
[421760345,1778116245000,-278.0,0.00023,2]
[421760336,1778116245000,-500.0,0.00022999,2]
[421760337,1778116245000,-500.0,0.00022999,2]
[421760338,1778116245000,-674.95,0.00022999,2]
[421760343,1778116245000,-311.0,0.00023,2]
[421760344,1778116245000,-237.0,0.00023,2]
[421760340,1778116245000,-526.26,0.00022999,2]
[421760339,1778116245000,-500.0,0.00022999,2]
[421760342,1778116245000,-305025.93316622,0.00023,2]
[421760341,1778116245000,-4747.76053301,0.00023,2]
[421760285,1778116245000,-173.908,0.00020445,2]
[421760347,1778116245000,-151.0,0.00023,2]
[421760311,1778116245000,-2875.0,0.000219,2]
[421760348,1778116245000,-151.0,0.00023,2]
[421760310,1778116245000,-157.04146425,0.00021745,2]
[421760287,1778116245000,-150.0,0.00020445,2]
[421760288,1778116245000,-150.0,0.00020445,2]
[421760290,1778116245000,-3536.0,0.00020445,2]